fUSD/lending_fUSD_20260614
["ID","MTS","AMOUNT","RATE_DAILY","PERIOD"]
[425006508,1781409055000,-789.12,0.00027397,2]
[425006510,1781409055000,-500.0,0.00027397,2]
[425006511,1781409055000,-500.0,0.00027397,2]
[425006505,1781409055000,-500.0,0.00027397,2]
[425006503,1781409055000,-578.95005505,0.00027397,2]
[425006504,1781409055000,-500.0,0.00027397,2]
[425006501,1781409055000,-500.0,0.00027397,2]
[425006502,1781409055000,-916.6,0.00027397,2]
[425006499,1781409055000,-612.39,0.00027397,2]
[425006500,1781409055000,-728.16,0.00027397,2]
[425006506,1781409055000,-500.0,0.00027397,2]
[425006600,1781409056000,-556.94,0.00027397,2]
[425006588,1781409056000,-500.0,0.00027397,2]
[425006591,1781409056000,-1972.03,0.00027397,2]
[425006595,1781409056000,-500.0,0.00027397,2]
[425006601,1781409056000,-1961.05,0.00027397,2]
[425006596,1781409056000,-500.0,0.00027397,2]
[425006597,1781409056000,-500.0,0.00027397,2]
[425006598,1781409056000,-2129.59,0.00027397,2]
[425006612,1781409056000,-625.45034161,0.00027397,2]
[425006602,1781409056000,-500.0,0.00027397,2]
[425006603,1781409056000,-1901.74,0.00027397,2]
[425006605,1781409056000,-605.57996325,0.00027397,2]
[425006608,1781409056000,-1631.24,0.00027397,2]
[425006606,1781409056000,-598.41447059,0.00027397,2]
[425006607,1781409056000,-839.1,0.00027397,2]
[425006604,1781409056000,-500.0,0.00027397,2]
[425006593,1781409056000,-500.0,0.00027397,2]
[425006610,1781409056000,-500.0,0.00027397,2]
[425006599,1781409056000,-500.0,0.00027397,2]
[425006590,1781409056000,-520.36,0.00027397,2]
[425006580,1781409056000,-500.0,0.00027397,2]
[425006589,1781409056000,-500.0,0.00027397,2]
[425006609,1781409056000,-500.0,0.00027397,2]
[425006572,1781409056000,-2504.08,0.00027397,2]
[425006571,1781409056000,-500.0,0.00027397,2]
[425006575,1781409056000,-500.0,0.00027397,2]
[425006574,1781409056000,-500.0,0.00027397,2]
[425006576,1781409056000,-500.0,0.00027397,2]
[425006573,1781409056000,-513.23013702,0.00027397,2]
[425006578,1781409056000,-1602.16,0.00027397,2]
[425006592,1781409056000,-500.0,0.00027397,2]
[425006577,1781409056000,-1360.87,0.00027397,2]
[425006582,1781409056000,-500.0,0.00027397,2]
[425006579,1781409056000,-1128.04,0.00027397,2]
[425006585,1781409056000,-500.0,0.00027397,2]
[425006583,1781409056000,-1134.46,0.00027397,2]
[425006584,1781409056000,-500.0,0.00027397,2]
[425006587,1781409056000,-500.0,0.00027397,2]
[425006594,1781409056000,-1380.41,0.00027397,2]
[425006586,1781409056000,-1313.55,0.00027397,2]
[425006581,1781409056000,-500.0,0.00027397,2]
[425006611,1781409056000,-2700.41,0.00027397,2]
[425006647,1781409056000,-500.0,0.00027397,2]
[425006615,1781409056000,-500.0,0.00027397,2]
[425006638,1781409056000,-486.52867664,0.00027397,2]
[425006641,1781409056000,-500.0,0.00027397,2]
[425006637,1781409056000,-688.39,0.00027397,2]
[425006639,1781409056000,-500.0,0.00027397,2]
[425006642,1781409056000,-500.0,0.00027397,2]
[425006640,1781409056000,-500.0,0.00027397,2]
[425006645,1781409056000,-605.02,0.00027397,2]
[425006644,1781409056000,-500.0,0.00027397,2]
[425006636,1781409056000,-1480.97,0.00027397,2]
[425006643,1781409056000,-500.0,0.00027397,2]
[425006648,1781409056000,-500.0,0.00027397,2]
[425006646,1781409056000,-786.47,0.00027397,2]
[425006651,1781409056000,-500.0,0.00027397,2]
[425006655,1781409056000,-822.34,0.00027397,2]
[425006653,1781409056000,-382.37890563,0.00027397,2]
[425006650,1781409056000,-2520.94,0.00027397,2]
[425006654,1781409056000,-500.0,0.00027397,2]
[425006616,1781409056000,-284.19547825,0.00027397,2]
[425006652,1781409056000,-500.0,0.00027397,2]
[425006632,1781409056000,-500.0,0.00027397,2]
[425006649,1781409056000,-867.84,0.00027397,2]
[425006635,1781409056000,-573.85,0.00027397,2]
[425006630,1781409056000,-1871.41,0.00027397,2]
[425006613,1781409056000,-625.4,0.00027397,2]
[425006617,1781409056000,-500.0,0.00027397,2]
[425006614,1781409056000,-1330.78,0.00027397,2]
[425006618,1781409056000,-500.0,0.00027397,2]
[425006619,1781409056000,-500.0,0.00027397,2]
[425006620,1781409056000,-500.0,0.00027397,2]
[425006622,1781409056000,-1077.98,0.00027397,2]
[425006623,1781409056000,-3057.81,0.00027397,2]
[425006621,1781409056000,-500.0,0.00027397,2]
[425006624,1781409056000,-500.0,0.00027397,2]
[425006626,1781409056000,-1075.97,0.00027397,2]
[425006625,1781409056000,-807.68,0.00027397,2]
[425006627,1781409056000,-500.0,0.00027397,2]
[425006628,1781409056000,-781.66,0.00027397,2]
[425006633,1781409056000,-1628.55,0.00027397,2]
[425006634,1781409056000,-551.65,0.00027397,2]
[425006629,1781409056000,-2795.7,0.00027397,2]
[425006631,1781409056000,-500.0,0.00027397,2]
[425006690,1781409057000,-500.0,0.00027397,2]
[425006694,1781409057000,-500.0,0.00027397,2]
[425006686,1781409057000,-500.0,0.00027397,2]
[425006689,1781409057000,-500.0,0.00027397,2]
[425006684,1781409057000,-813.36,0.00027397,2]
[425006687,1781409057000,-500.0,0.00027397,2]
[425006685,1781409057000,-2293.99,0.00027397,2]
[425006681,1781409057000,-1038.41,0.00027397,2]
[425006693,1781409057000,-3403.84,0.00027397,2]
[425006688,1781409057000,-806.79,0.00027397,2]
[425006691,1781409057000,-500.0,0.00027397,2]
[425006703,1781409057000,-500.0,0.00027397,2]
[425006696,1781409057000,-500.0,0.00027397,2]
[425006695,1781409057000,-1107.25,0.00027397,2]
[425006699,1781409057000,-2060.09,0.00027397,2]
[425006702,1781409057000,-500.0,0.00027397,2]
[425006700,1781409057000,-802.49,0.00027397,2]
[425006698,1781409057000,-744.04,0.00027397,2]
[425006701,1781409057000,-565.55,0.00027397,2]
[425006697,1781409057000,-500.0,0.00027397,2]
[425006704,1781409057000,-500.0,0.00027397,2]
[425006682,1781409057000,-500.0,0.00027397,2]
[425006692,1781409057000,-361.37964751,0.00027397,2]
[425006680,1781409057000,-2259.61,0.00027397,2]
[425006660,1781409057000,-582.29,0.00027397,2]
[425006679,1781409057000,-3320.05,0.00027397,2]
[425006657,1781409057000,-532.19,0.00027397,2]
[425006656,1781409057000,-870.43,0.00027397,2]
[425006658,1781409057000,-500.0,0.00027397,2]
[425006659,1781409057000,-694.04,0.00027397,2]
[425006706,1781409057000,-500.0,0.00027397,2]
[425006661,1781409057000,-2820.51,0.00027397,2]
[425006662,1781409057000,-500.0,0.00027397,2]
[425006663,1781409057000,-500.0,0.00027397,2]
[425006665,1781409057000,-677.22,0.00027397,2]
[425006666,1781409057000,-841.51,0.00027397,2]
[425006664,1781409057000,-500.0,0.00027397,2]
[425006670,1781409057000,-500.0,0.00027397,2]
[425006669,1781409057000,-546.98,0.00027397,2]
[425006673,1781409057000,-1032.4,0.00027397,2]
[425006667,1781409057000,-1103.82,0.00027397,2]
[425006672,1781409057000,-2013.41,0.00027397,2]
[425006668,1781409057000,-1788.97,0.00027397,2]
[425006671,1781409057000,-2123.65,0.00027397,2]
[425006675,1781409057000,-500.0,0.00027397,2]
[425006674,1781409057000,-754.97,0.00027397,2]
[425006678,1781409057000,-500.0,0.00027397,2]
[425006677,1781409057000,-500.0,0.00027397,2]
[425006676,1781409057000,-500.0,0.00027397,2]
[425006683,1781409057000,-500.0,0.00027397,2]
[425006707,1781409057000,-632.98,0.00027397,2]
[425006716,1781409057000,-500.0,0.00027397,2]
[425006713,1781409057000,-500.0,0.00027397,2]
[425006738,1781409057000,-500.0,0.00027397,2]
[425006737,1781409057000,-1386.86,0.00027397,2]
[425006739,1781409057000,-342.95801985,0.00027397,2]
[425006741,1781409057000,-500.0,0.00027397,2]
[425006740,1781409057000,-500.0,0.00027397,2]
[425006743,1781409057000,-500.0,0.00027397,2]
[425006747,1781409057000,-500.0,0.00027397,2]
[425006746,1781409057000,-1161.27,0.00027397,2]
[425006705,1781409057000,-500.0,0.00027397,2]
[425006742,1781409057000,-500.0,0.00027397,2]
[425006745,1781409057000,-500.0,0.00027397,2]
[425006749,1781409057000,-1369.06,0.00027397,2]
[425006750,1781409057000,-500.0,0.00027397,2]
[425006748,1781409057000,-500.0,0.00027397,2]
[425006752,1781409057000,-1181.05,0.00027397,2]
[425006757,1781409057000,-1851.66,0.00027397,2]
[425006751,1781409057000,-587.47,0.00027397,2]
[425006755,1781409057000,-500.0,0.00027397,2]
[425006754,1781409057000,-1341.34,0.00027397,2]
[425006756,1781409057000,-1159.52,0.00027397,2]
[425006758,1781409057000,-500.0,0.00027397,2]
[425006753,1781409057000,-500.0,0.00027397,2]
[425006759,1781409057000,-567.92289508,0.00027397,2]
[425006733,1781409057000,-1107.91,0.00027397,2]
[425006734,1781409057000,-500.0,0.00027397,2]
[425006744,1781409057000,-500.0,0.00027397,2]
[425006732,1781409057000,-500.0,0.00027397,2]
[425006731,1781409057000,-580.42537797,0.00027397,2]
[425006715,1781409057000,-500.0,0.00027397,2]
[425006711,1781409057000,-1951.6,0.00027397,2]
[425006709,1781409057000,-500.0,0.00027397,2]
[425006708,1781409057000,-500.0,0.00027397,2]
[425006714,1781409057000,-500.0,0.00027397,2]
[425006712,1781409057000,-835.09,0.00027397,2]
[425006719,1781409057000,-500.0,0.00027397,2]
[425006722,1781409057000,-1673.2,0.00027397,2]
[425006721,1781409057000,-778.18,0.00027397,2]
[425006717,1781409057000,-653.51,0.00027397,2]
[425006710,1781409057000,-1534.92,0.00027397,2]
[425006720,1781409057000,-567.95,0.00027397,2]
[425006718,1781409057000,-554.15,0.00027397,2]
[425006727,1781409057000,-500.0,0.00027397,2]
[425006736,1781409057000,-2723.85,0.00027397,2]
[425006735,1781409057000,-1361.01,0.00027397,2]
[425006729,1781409057000,-500.0,0.00027397,2]
[425006730,1781409057000,-500.0,0.00027397,2]
[425006726,1781409057000,-500.0,0.00027397,2]
[425006724,1781409057000,-785.42,0.00027397,2]
[425006725,1781409057000,-500.0,0.00027397,2]
[425006723,1781409057000,-2772.55,0.00027397,2]
[425006728,1781409057000,-500.0,0.00027397,2]
[425006782,1781409058000,-852.25,0.00027397,2]
[425006773,1781409058000,-558.61,0.00027397,2]
[425006778,1781409058000,-8437.35,0.00027397,2]
[425006775,1781409058000,-535.61,0.00027397,2]
[425006779,1781409058000,-530.18,0.00027397,2]
[425006780,1781409058000,-684.3,0.00027397,2]
[425006777,1781409058000,-500.0,0.00027397,2]
[425006776,1781409058000,-673.38,0.00027397,2]
[425006772,1781409058000,-1612.71,0.00027397,2]
[425006774,1781409058000,-1001.93,0.00027397,2]
[425006771,1781409058000,-500.0,0.00027397,2]
[425006768,1781409058000,-500.0,0.00027397,2]
[425006765,1781409058000,-500.0,0.00027397,2]
[425006766,1781409058000,-1070.57,0.00027397,2]
[425006764,1781409058000,-500.0,0.00027397,2]
[425006762,1781409058000,-500.0,0.00027397,2]
[425006769,1781409058000,-2190.13,0.00027397,2]
[425006763,1781409058000,-500.0,0.00027397,2]
[425006761,1781409058000,-500.0,0.00027397,2]
[425006770,1781409058000,-500.0,0.00027397,2]
[425006760,1781409058000,-500.0,0.00027397,2]
[425006781,1781409058000,-1680.62,0.00027397,2]
[425006767,1781409058000,-724.24,0.00027397,2]
[425006789,1781409058000,-3501.87,0.00027397,2]
[425006785,1781409058000,-500.0,0.00027397,2]
[425006790,1781409058000,-500.0,0.00027397,2]
[425006784,1781409058000,-600.77,0.00027397,2]
[425006808,1781409058000,-389.00059984,0.00027397,2]
[425006806,1781409058000,-500.0,0.00027397,2]
[425006805,1781409058000,-1025.26,0.00027397,2]
[425006804,1781409058000,-500.0,0.00027397,2]
[425006800,1781409058000,-500.0,0.00027397,2]
[425006801,1781409058000,-500.0,0.00027397,2]
[425006798,1781409058000,-1052.78,0.00027397,2]
[425006802,1781409058000,-500.0,0.00027397,2]
[425006799,1781409058000,-1307.12,0.00027397,2]
[425006797,1781409058000,-2211.6,0.00027397,2]
[425006803,1781409058000,-500.0,0.00027397,2]
[425006793,1781409058000,-543.5,0.00027397,2]
[425006786,1781409058000,-20049.69,0.00027397,2]
[425006794,1781409058000,-526.0,0.00027397,2]
[425006783,1781409058000,-1634.21,0.00027397,2]
[425006807,1781409058000,-500.0,0.00027397,2]
[425006791,1781409058000,-500.0,0.00027397,2]
[425006787,1781409058000,-1734.54,0.00027397,2]
[425006792,1781409058000,-500.0,0.00027397,2]
[425006796,1781409058000,-755.85,0.00027397,2]
[425006795,1781409058000,-500.0,0.00027397,2]
[425006788,1781409058000,-627.34,0.00027397,2]
[425006818,1781409059000,-922.35,0.00027397,2]
[425006810,1781409059000,-880.16940016,0.00027397,2]
[425006809,1781409059000,-656.38,0.00027397,2]
[425006812,1781409059000,-500.0,0.00027397,2]
[425006811,1781409059000,-500.0,0.00027397,2]
[425006822,1781409059000,-500.0,0.00027397,2]
[425006813,1781409059000,-960.98,0.00027397,2]
[425006815,1781409059000,-892.62,0.00027397,2]
[425006814,1781409059000,-2160.35,0.00027397,2]
[425006819,1781409059000,-500.0,0.00027397,2]
[425006817,1781409059000,-691.55,0.00027397,2]
[425006821,1781409059000,-500.0,0.00027397,2]
[425006827,1781409059000,-726.72950386,0.00027397,2]
[425006820,1781409059000,-500.0,0.00027397,2]
[425006825,1781409059000,-500.0,0.00027397,2]
[425006823,1781409059000,-206.70150518,0.00027397,2]
[425006824,1781409059000,-500.0,0.00027397,2]
[425006826,1781409059000,-283.44219458,0.00027397,2]
[425006816,1781409059000,-1411.59,0.00027397,2]
[425006829,1781409561000,250.0,0.00014,2]
[425006833,1781410043000,-194.6,0.00016438,2]
[425006831,1781410043000,-300.0,0.00016,2]
[425006834,1781410043000,-159.74997674,0.00017786,2]
[425006832,1781410043000,-500.0,0.00016438,2]
[425006855,1781410231000,-156.0,0.0002,2]
[425006845,1781410231000,-881.80625,0.00017568,2]
[425006846,1781410231000,-618.19375,0.00017568,2]
[425006847,1781410231000,-350.0,0.00018,2]
[425006848,1781410231000,-514.0,0.00018,2]
[425006849,1781410231000,-38.11212748,0.00018116,2]
[425006850,1781410231000,-1517.38787252,0.00018116,2]
[425006851,1781410231000,-194.6,0.0001841,2]
[425006852,1781410231000,-1181.81836719,0.00018664,2]
[425006856,1781410231000,-168.0,0.0002,2]
[425006854,1781410231000,-400.0,0.0002,2]
[425006867,1781410231000,-209.79886787,0.00020999,2]
[425006857,1781410231000,-151.0,0.0002,2]
[425006853,1781410231000,-1203.59825934,0.0002,2]
[425006864,1781410231000,-350.0,0.00020699,3]
[425006866,1781410231000,-172.08142812,0.00020999,2]
[425006863,1781410231000,-194.6,0.00020381,2]
[425006868,1781410231000,-9918.74742934,0.00021,2]
[425006862,1781410231000,-273.0,0.0002,2]
[425006860,1781410231000,-154.0,0.0002,2]
[425006859,1781410231000,-162.0,0.0002,2]
[425006858,1781410231000,-184.0,0.0002,2]
[425006861,1781410231000,-198.0,0.0002,2]
[425006887,1781410232000,-150.0,0.00021918,2]
[425006890,1781410232000,-198.0,0.00022,2]
[425006888,1781410232000,-156.0,0.00022,2]
[425006889,1781410232000,-184.0,0.00022,2]
[425006893,1781410232000,-151.85530607,0.00022054,2]
[425006892,1781410232000,-153.60555237,0.00022054,2]
[425006894,1781410232000,-166.66,0.00022307,30]
[425006899,1781410232000,-151.0,0.000225,2]
[425006897,1781410232000,-154.53217452,0.00022407,2]
[425006896,1781410232000,-154.53217454,0.00022407,2]
[425006891,1781410232000,-273.0,0.00022,2]
[425006886,1781410232000,-166.66,0.00021857,2]
[425006883,1781410232000,-154.27646457,0.00021759,2]
[425006885,1781410232000,-350.0,0.00021816,4]
[425006881,1781410232000,-166.66,0.00021406,2]
[425006882,1781410232000,-1125.99999999,0.00021471,2]
[425006879,1781410232000,-273.0,0.00021,2]
[425006880,1781410232000,-299.99,0.00021,7]
[425006878,1781410232000,-198.0,0.00021,2]
[425006876,1781410232000,-184.0,0.00021,2]
[425006870,1781410232000,-8679.42041776,0.00021,2]
[425006874,1781410232000,-157.0,0.00021,2]
[425006872,1781410232000,-156.0,0.00021,2]
[425006900,1781410232000,-200.0,0.000225,2]
[425006884,1781410232000,-285.61462453,0.00021759,2]
[425006901,1781410232000,-151.0,0.000225,2]
[425006923,1781410232000,-151.0,0.000225,2]
[425006898,1781410232000,-166.53940923,0.00022407,2]
[425006895,1781410232000,-194.6,0.00022353,2]
[425006927,1781410232000,-199.11842817,0.000225,2]
[425006926,1781410232000,-151.0,0.000225,2]
[425006925,1781410232000,-181.43211455,0.000225,2]
[425006924,1781410232000,-500.0,0.000225,2]
[425006920,1781410232000,-151.0,0.000225,2]
[425006917,1781410232000,-151.0,0.000225,2]
[425006921,1781410232000,-428.13245595,0.000225,2]
[425006922,1781410232000,-71.86754405,0.000225,2]
[425006918,1781410232000,-500.0,0.000225,2]
[425006916,1781410232000,-151.0,0.000225,2]
[425006914,1781410232000,-151.0,0.000225,2]
[425006919,1781410232000,-151.0,0.000225,2]
[425006915,1781410232000,-151.0,0.000225,2]
[425006902,1781410232000,-151.0,0.000225,2]
[425006904,1781410232000,-151.0,0.000225,2]
[425006913,1781410232000,-500.0,0.000225,2]
[425006906,1781410232000,-151.0,0.000225,2]
[425006905,1781410232000,-151.0,0.000225,2]
[425006908,1781410232000,-151.0,0.000225,2]
[425006903,1781410232000,-151.0,0.000225,2]
[425006907,1781410232000,-151.0,0.000225,2]
[425006912,1781410232000,-151.0,0.000225,2]
[425006911,1781410232000,-151.0,0.000225,2]
[425006910,1781410232000,-500.0,0.000225,2]
[425006909,1781410232000,-151.0,0.000225,2]
[425006936,1781410237000,-500.0,0.000225,2]
[425006932,1781410237000,-99.17314178,0.000225,2]
[425006931,1781410237000,-166.53940922,0.00022407,2]
[425006933,1781410237000,-201.70843005,0.000225,2]
[425006934,1781410237000,-151.0,0.000225,2]
[425006935,1781410237000,-500.0,0.000225,2]
[425006937,1781410237000,-500.0,0.000225,2]
[425006938,1781410237000,-166.66,0.00022758,30]
[425006944,1781410237000,-176.54,0.00022888,2]
[425006941,1781410237000,-764.8018764,0.00022823,2]
[425006940,1781410237000,-327.0332532,0.00022823,2]
[425006942,1781410237000,-5034.93112176,0.00022823,2]
[425006943,1781410237000,-350.0,0.00022888,4]
[425006945,1781410237000,-3942.06887824,0.00022916,2]
[425006946,1781410237000,-705.39,0.00022916,2]
[425006947,1781410237000,-352.54112176,0.00022916,2]
[425006939,1781410237000,-831.84374864,0.00022823,2]
[425006960,1781410238000,-166.66,0.00023659,30]
[425006959,1781410238000,-166.66,0.00023208,30]
[425006963,1781410238000,-585.0,0.00024,7]
[425006958,1781410238000,-382.51,0.00023202,2]
[425006957,1781410238000,-157.93,0.00023079,2]
[425006956,1781410238000,-200.0,0.00023048,2]
[425006948,1781410238000,-1759.12387824,0.00022963,2]
[425006952,1781410238000,-184.0,0.00023,2]
[425006951,1781410238000,-156.0,0.00023,2]
[425006953,1781410238000,-198.0,0.00023,2]
[425006949,1781410238000,-240.87612176,0.00022963,2]
[425006955,1781410238000,-150.0,0.00023014,2]
[425006950,1781410238000,-200.0,0.00022993,2]
[425006961,1781410238000,-84.95430094,0.00023916,5]
[425006954,1781410238000,-273.0,0.00023,2]
[425006965,1781410238000,-184.0,0.00024,2]
[425006962,1781410238000,-265.04569906,0.00023916,5]
[425006966,1781410238000,-198.0,0.00024,2]
[425006983,1781410238000,-1410.0,0.00025,2]
[425006982,1781410238000,-7287.39351335,0.00025,2]
[425006979,1781410238000,-350.0,0.00024903,6]
[425006980,1781410238000,-1217.34151231,0.00025,2]
[425006978,1781410238000,-166.1356642,0.000249,2]
[425006974,1781410238000,-111.94631293,0.00024658,2]
[425006976,1781410238000,-170.83,0.00024658,2]
[425006964,1781410238000,-174.0,0.00024,2]
[425006972,1781410238000,-1000.0,0.00024658,2]
[425006967,1781410238000,-273.0,0.00024,2]
[425006970,1781410238000,-521.0,0.00024658,2]
[425006975,1781410238000,-58.87368707,0.00024658,2]
[425006981,1781410238000,-942.62744777,0.00025,2]
[425006977,1781410238000,-185.59614473,0.000249,2]
[425006969,1781410238000,-194.6,0.00024324,2]
[425006968,1781410238000,-1111.44689023,0.00024259,2]
[425006999,1781410240000,-160.54280205,0.00025922,2]
[425006996,1781410240000,-350.0,0.00025849,7]
[425006998,1781410240000,-166.1356642,0.000259,2]
[425006994,1781410240000,-166.1356642,0.000256,2]
[425006992,1781410240000,-648.0,0.00025463,10]
[425006995,1781410240000,-329.24700564,0.00025766,2]
[425006993,1781410240000,-185.59614473,0.000256,2]
[425006988,1781410240000,-185.59614473,0.000251,2]
[425006991,1781410240000,-166.1356642,0.000254,2]
[425006989,1781410240000,-166.1356642,0.000251,2]
[425006987,1781410240000,-284.0,0.00025,2]
[425006986,1781410240000,-200.0,0.00025,2]
[425006984,1781410240000,-33337.45434355,0.00025,2]
[425006985,1781410240000,-191.0,0.00025,2]
[425006997,1781410240000,-185.59614473,0.000259,2]
[425006990,1781410240000,-185.59614473,0.000254,2]
[425007000,1781410240000,-151.0,0.00025922,2]
[425007001,1781410240000,-3644.0,0.00025932,2]
[425007003,1781410240000,-157.93,0.00025964,120]
[425007018,1781410240000,-457.04884248,0.00026681,2]
[425007017,1781410240000,-463.52887949,0.00026681,2]
[425007016,1781410240000,-2338.1,0.00026681,2]
[425007015,1781410240000,-273.1454,0.00026681,2]
[425007014,1781410240000,-1184.77920552,0.00026681,2]
[425007011,1781410240000,-748.63,0.0002668,2]
[425007009,1781410240000,-2500.0,0.00026581,2]
[425007013,1781410240000,-37855.04107321,0.00026681,2]
[425007019,1781410240000,-614.9631,0.00026681,2]
[425007012,1781410240000,-748.63,0.0002668,2]
[425007006,1781410240000,-161.319,0.00026466,13]
[425007008,1781410240000,-454.99,0.0002656,2]
[425007007,1781410240000,-1840.172,0.00026466,13]
[425007004,1781410240000,-382.51,0.00026103,2]
[425007005,1781410240000,-194.6,0.00026296,2]
[425007002,1781410240000,-934.0,0.00025932,2]
[425007010,1781410240000,-970.20253942,0.00026656,2]
[425007020,1781410241000,-892.18335078,0.00026681,2]
[425007028,1781410242000,-396.39720214,0.00026681,2]
[425007027,1781410242000,-143.64253761,0.00026681,2]
[425007026,1781410242000,-170.83,0.00024658,2]
[425007030,1781410243000,-3439.00449164,0.00026681,2]
[425007032,1781410243000,-464.00889155,0.00026681,2]
[425007031,1781410243000,-398.72390016,0.00026681,2]
[425007029,1781410243000,-327.56004162,0.00026681,2]
[425007070,1781410245000,-19094.62057308,0.00026781,7]
[425007063,1781410245000,-406.79094053,0.00026681,2]
[425007064,1781410245000,-216518.46752718,0.00026681,2]
[425007065,1781410245000,-127733.05861609,0.00026681,2]
[425007066,1781410245000,-594.0,0.00026681,10]
[425007071,1781410245000,-970.20253942,0.00026819,2]
[425007069,1781410245000,-572.24,0.00026756,2]
[425007068,1781410245000,-500.0,0.00026756,2]
[425007077,1781410245000,-970.20253942,0.00026981,2]
[425007072,1781410245000,-170.82,0.00026829,7]
[425007073,1781410245000,-170.83,0.00026829,7]
[425007074,1781410245000,-755.52,0.00026849,2]
[425007079,1781410245000,-150.079,0.00026993,2]
[425007080,1781410245000,-3557.0,0.00026993,2]
[425007078,1781410245000,-150.075,0.00026993,2]
[425007076,1781410245000,-225.58,0.00026972,2]
[425007067,1781410245000,-350.0,0.00026756,8]
[425007075,1781410245000,-397.44,0.00026849,2]
[425007126,1781410246000,-748.63,0.00027396,2]
[425007115,1781410246000,-573.9,0.00027396,2]
[425007116,1781410246000,-573.9,0.00027396,2]
[425007107,1781410246000,-500.0,0.00027389,2]
[425007109,1781410246000,-243.95110342,0.00027389,2]
[425007113,1781410246000,-573.9,0.00027396,2]
[425007117,1781410246000,-573.9,0.00027396,2]
[425007111,1781410246000,-398.23828919,0.00027396,2]
[425007112,1781410246000,-573.9,0.00027396,2]
[425007119,1781410246000,-985.93,0.00027396,2]
[425007124,1781410246000,-985.93,0.00027396,2]
[425007118,1781410246000,-322.51812781,0.00027396,10]
[425007120,1781410246000,-985.93,0.00027396,2]
[425007114,1781410246000,-573.9,0.00027396,2]
[425007122,1781410246000,-985.93,0.00027396,2]
[425007123,1781410246000,-985.93,0.00027396,2]
[425007131,1781410246000,-14.76103258,0.00027396,2]
[425007128,1781410246000,-748.63,0.00027396,2]
[425007135,1781410246000,-893.81,0.00027396,2]
[425007130,1781410246000,-748.63,0.00027396,2]
[425007132,1781410246000,-733.86896742,0.00027396,2]
[425007133,1781410246000,-748.63,0.00027396,2]
[425007134,1781410246000,-893.81,0.00027396,2]
[425007121,1781410246000,-985.93,0.00027396,2]
[425007110,1781410246000,-440.82889658,0.00027396,2]
[425007103,1781410246000,-1171.0,0.00027389,2]
[425007106,1781410246000,-893.81,0.00027389,2]
[425007141,1781410246000,-893.81,0.00027396,2]
[425007081,1781410246000,-1359.0,0.00026993,2]
[425007082,1781410246000,-1275.0,0.00026993,2]
[425007094,1781410246000,-970.20253942,0.00027144,2]
[425007085,1781410246000,-985.93,0.00026999,2]
[425007083,1781410246000,-1228.0,0.00026993,2]
[425007084,1781410246000,-985.93,0.00026999,2]
[425007087,1781410246000,-893.81,0.00026999,2]
[425007088,1781410246000,-500.0,0.00026999,2]
[425007086,1781410246000,-893.81,0.00026999,2]